Cogmind - Beta 12 @@@ ROGUE MODE // 2024.01.14 @ 19:10:25 Player: morimori Result: Destroyed by G-47 Trooper with Particle Gun Performance ------------- Evolutions (0) 0 Regions Visited (2) 400 Robots Destroyed (49) 245 Value Destroyed (701) 701 Prototype IDs (3) 60 Alien Tech Used (0) 0 Bonus (0) 0 TOTAL SCORE: 1406 Bonus ------- None Cogmind --------- Core Integrity 0/250 Matter 300/300 Energy 115/125 System Corruption 0% Temperature Cool (9) Movement Rolling (135) Ox3 Location -10/Mines Parts ------- > --- POWER (1) -------- Light Ion Engine > --- PROPULSION (2) --- Wheel Compact Wheel > --- UTILITY (2) ------ Cooling System Huge Storage Unit > --- WEAPON (2) ------- Beam Rifle Beam Rifle > --- INVENTORY (25) --- Ion Engine Ion Engine Aluminum Leg Aluminum Leg Aluminum Leg Aluminum Leg Aluminum Leg Wheel Compact Wheel Cooling System Cooling System Medium Storage Unit Large Storage Unit High-capacity Storage Unit Medium Matter Pod (100) Structural Scanner Sensor Array Improved Terrain Scanner Hardened Light Armor Plating Hardened Light Armor Plating Hacking Suite Beam Rifle Beam Rifle Grenade Launcher Makeshift Hammer Peak State ------------ > --- POWER ------------ Light Ion Engine > --- PROPULSION ------- Wheel Compact Wheel > --- UTILITY ---------- Cooling System Huge Storage Unit > --- WEAPON ----------- Beam Rifle Beam Rifle > --- INVENTORY -------- Ion Engine Ion Engine Aluminum Leg Aluminum Leg Aluminum Leg Aluminum Leg Aluminum Leg Wheel Cooling System Cooling System Medium Storage Unit Large Storage Unit High-capacity Storage Unit Medium Matter Pod Structural Scanner Sensor Array Improved Terrain Scanner Hardened Light Armor Plating Hardened Light Armor Plating Hacking Suite Beam Rifle Beam Rifle Grenade Launcher Makeshift Hammer [Rating: 13] Favorites ----------- Power Light Ion Engine Engine Light Ion Engine Propulsion Compact Wheel Wheel Compact Wheel Utility Huge Storage Unit Device Heat Sink Storage Huge Storage Unit Protection Hardened Light Armor Plating Weapon Small Laser Energy Gun Small Laser Ballistic Gun Light Assault Rifle Launcher Grenade Launcher Build | -11 -10 -10 ------- Run | Jun Mat Min Slots Evolved . | . . . Power . | . . . Propulsion . | . . . Utility . | . . . Weapon . | . . . Parts Attached 34 | 7 22 5 Power 8 | 1 7 . Engine 8 | 1 7 . Core . | . . . Reactor . | . . . Propulsion 9 | 2 4 3 Treads . | . . . Leg . | . . . Wheel 9 | 2 4 3 Hover . | . . . Flight . | . . . Utility 7 | 2 4 1 Device 3 | 1 1 1 Storage 3 | 1 2 . Processor . | . . . Hackware . | . . . Protection 1 | . 1 . Artifact . | . . . Weapon 10 | 2 7 1 Energy Gun 6 | 1 4 1 Energy Cannon . | . . . Ballistic Gun 2 | 1 1 . Ballistic Cannon . | . . . Launcher 2 | . 2 . Special Weapon . | . . . Impact Weapon . | . . . Slashing Weapon . | . . . Piercing Weapon . | . . . Special Melee Weapon . | . . . Unidentified Prototypes . | . . . Parts Lost 4 | . 2 2 Power . | . . . Propulsion 1 | . . 1 Utility 2 | . 2 . Weapon 1 | . . 1 Highest Loss Streak 1 | . 1 1 To Critical Strikes . | . . . Average Slot Usage (%) 99 | . 98 100 Engine 13 | . 13 14 Wheel 28 | . 28 28 Device 10 | . 11 9 Storage 14 | . 14 14 Protection 2 | . 2 4 Energy Gun 19 | . 14 28 Ballistic Gun 8 | . 11 . Naked Turns . | . . . Heaviest Build 95 | 11 95 93 Greatest Support 32 | 32 32 26 Greatest Overweight (x) 4 | . 4 4 Average Overweight (x) 1 | . 1 3 Largest Inventory Capacity 25 | 8 25 25 Average Capacity 19 | 7 21 25 Most Carried 25 | 8 25 25 Average Carried 18 | 6 19 24 Final Capacity 25 | 8 25 25 Final Carried 25 | 8 25 25 Class Distribution -------------------- 100% | Mutant Dominant Class ---------------- Mutant | -10/Materials Mutant | -10/Mines Resources | -11 -10 -10 ----------- Run | Jun Mat Min Matter Collected 875 | 437 223 215 Remotely . | . . . Salvage Created 1093 | 314 528 251 Parts 104 | 29 61 14 Haulers Intercepted 2 | . 2 . Recyclers Shooed 1 | . . 1 Parts Field Recycled . | . . . Retrieved Matter . | . . . Parts Self-Destructed . | . . . Prevented . | . . . Kills | -11 -10 -10 ------- Run | Jun Mat Min Combat Hostiles Destroyed 23 | . 15 8 Guns 16 | . 8 8 AOE 7 | . 7 . Classes Destroyed 9 | 3 6 . Worker 5 | 4 1 . Builder 3 | . 3 . Tunneler 11 | 9 2 . Hauler 2 | . 2 . Recycler 2 | 1 . 1 Operator 2 | . 2 . Watcher 1 | . 1 . Swarmer 12 | . 6 6 Grunt 11 | . 9 2 Best Kill Streak 5 | 5 4 4 Combat Bots Only 4 | . 3 4 Max Kills in Single Turn 3 | 1 3 1 Gunslinging . | . . . Exploded 2 | . 2 . Melee . | . . . Uniques/NPCs Destroyed . | . . . Combat | -11 -10 -10 -------- Run | Jun Mat Min Damage Taken 974 | . 482 492 Core 261 | . 74 187 Absorbed by Shields . | . . . Core Remaining (%) 100 | 100 . . Volleys Fired 137 | 39 61 37 Largest 2 | 2 2 2 Hottest 112 | 60 106 112 Shots Fired 270 | 78 119 73 Gun 262 | 78 111 73 Cannon . | . . . Launcher 8 | . 8 . Special . | . . . Kinetic 98 | 39 59 . Thermal 164 | 39 52 73 Explosive 8 | . 8 . Electromagnetic . | . . . Robot Hit Streak 12 | 12 8 5 Robot Miss Streak 8 | 3 8 3 Penetration Max . | . . . Secondary Targets 3 | . . 3 Max Gunslinging Chain 1 | . . 1 Shots Hit Robots 153 | 49 60 44 Core Hits 69 | 19 38 12 Critical Kills . | . . . Critical Parts Destroyed . | . . . Critical Strikes 1 | . . 1 Burn 1 | . . 1 Melee Attacks . | . . . Impact . | . . . Slashing . | . . . Piercing . | . . . Sneak Attacks . | . . . Combat Hostiles . | . . . Follow-up Attacks . | . . . Damage Inflicted 2370 | 486 1276 608 Guns 1758 | 486 664 608 Cannons . | . . . Explosions 612 | . 612 . Melee . | . . . Ramming . | . . . Kinetic 458 | 173 285 . Thermal 1300 | 313 379 608 Explosive 612 | . 612 . Electromagnetic . | . . . Impact . | . . . Slashing . | . . . Piercing . | . . . Highest Corruption . | . . . Average Corruption . | . . . Corruption Purged . | . . . Corruption Blocked . | . . . Overload Shots . | . . . Overflow Damage 18 | . 18 . Projectiles . | . . . Explosions 18 | . 18 . Melee . | . . . Knockbacks . | . . . Impact . | . . . Kinetic . | . . . Secondary . | . . . Self-Inflicted Damage . | . . . Shots . | . . . Rammed . | . . . Targets Rammed . | . . . Kicked . | . . . Crushed . | . . . Highest Temperature 345 | 40 134 345 Average Temperature 75 | 22 51 153 Received Heat Transfer 402 | . 198 204 Effects 1 | . . 1 Energy Bleed 1 | . . 1 Siege Activations . | . . . Robots Corrupted . | . . . Combat Hostiles . | . . . Parts Fried . | . . . Impact Corruptions . | . . . Robots Melted . | . . . Combat Hostiles . | . . . Parts Melted 1 | . . 1 Heat Transferred 3360 | 725 933 1702 Parts Sabotaged . | . . . Parts Stolen . | . . . Parts Stripped . | . . . Power Chain Reactions . | . . . Missiles Intercepted . | . . . Alert | -11 -10 -10 ------- Run | Jun Mat Min Peak Influence 295 | 70 295 195 Initial 5 | . . 5 Average 64 | 27 78 71 Maximum Alert Level 1 | . 1 . Low Security (%) 94 | 100 88 100 Level 1 5 | . 11 . Level 2 . | . . . Level 3 . | . . . Level 4 . | . . . Level 5 . | . . . High Security . | . . . Max Security . | . . . Squads Dispatched 3 | . 3 . Investigation 1 | . 1 . Extermination . | . . . Reinforcement 2 | . 2 . Assault . | . . . Garrison . | . . . Intercept . | . . . Searches Triggered . | . . . Construction Impeded . | . . . Haulers Reinforced . | . . . Active Scanning Responses . | . . . Cargo Convoy Interrupts . | . . . Stealth | -11 -10 -10 --------- Run | Jun Mat Min Distress Signals 1 | . 1 . Communications Jammed . | . . . Distress Signals . | . . . Times Spotted 33 | . 23 10 Peak Tracking Total 5 | . 5 3 Tactical Retreats . | . . . Traps | -11 -10 -10 ------- Run | Jun Mat Min Traps Triggered 2 | . 2 . Indirectly . | . . . Trap Hack Attempts . | . . . Triggered . | . . . Disarmed . | . . . Reprogrammed . | . . . Reused . | . . . Traps Extracted . | . . . Installed . | . . . Triggered . | . . . Machines | -11 -10 -10 ---------- Run | Jun Mat Min Machines Disabled 2 | . 1 1 Max in Single Turn 1 | . 1 1 Machines Repaired . | . . . Machines Sabotaged . | . . . Overloaded Fab Kills . | . . . Hacking | -11 -10 -10 --------- Run | Jun Mat Min Machines Accessed 8 | . 8 . Terminals 6 | . 6 . Fabricators . | . . . Repair Stations . | . . . Recycling Units 2 | . 2 . Scanalyzers . | . . . Garrison Access . | . . . Total Hacks 26 | . 26 . Successful 12 | . 12 . Failed 14 | . 14 . Catastrophic 1 | . 1 . Database Lockouts . | . . . Manual 19 | . 19 . Terminals 22 | . 22 . Fabricators . | . . . Repair Stations . | . . . Recycling Units 4 | . 4 . Scanalyzers . | . . . Garrison Access . | . . . Terminal Hacks 6 | . 6 . Part Schematic 1 | . 1 . Prototype ID Bank 2 | . 2 . Terminal Index 1 | . 1 . Unreport Threat 2 | . 2 . Fabricator Hacks . | . . . Repair Station Hacks . | . . . Recycling Unit Hacks 3 | . 3 . Retrieve Components 3 | . 3 . Scanalyzer . | . . . Garrison Access Hacks . | . . . Unauthorized Hacks 3 | . 3 . Terminals 3 | . 3 . Assimilate 1 | . 1 . Botnet 2 | . 2 . Fabricators . | . . . Repair Stations . | . . . Recycling Units . | . . . Scanalyzers . | . . . Garrison Access . | . . . Data Cores Recovered . | . . . Used . | . . . Hacking Detections 8 | . 8 . Full Trace Events . | . . . Feedback Events . | . . . Feedback Blocked . | . . . Robot Schematics Acquired . | . . . Robots Built . | . . . Authchips . | . . . Time . | . . . Total Robot Build Rating . | . . . Part Schematics Acquired 1 | . 1 . Parts Built . | . . . Authchips . | . . . Time . | . . . Total Part Build Rating . | . . . Parts Repaired . | . . . Time . | . . . Parts Recycled . | . . . Recycled Matter . | . . . Retrieved Matter . | . . . Retrieved Components 5 | . 5 . Parts Scanalyzed . | . . . Part Schematics Acquired . | . . . Parts Damaged . | . . . Bothacking | -11 -10 -10 ------------ Run | Jun Mat Min Used RIF Installer . | . . . Robots Hacked . | . . . Non-combat . | . . . Combat . | . . . Robot Hacks Applied . | . . . Relay Couplers Released . | . . . Fabnet Peak Effective % . | . . . Robots Rewired . | . . . Allies Hacked . | . . . Hacks Repelled . | . . . Allies | -11 -10 -10 -------- Run | Jun Mat Min Total Allies . | . . . Largest Group . | . . . Highest-Rated Group . | . . . Highest-Rated Ally . | . . . Total Orders . | . . . Ally Attacks . | . . . Total Damage . | . . . Kills . | . . . Allies Corrupted . | . . . Allies Melted . | . . . Intel | -11 -10 -10 ------- Run | Jun Mat Min Robot Analysis Total . | . . . Derelict Logs Recovered 2 | . . 2 Drone Launches . | . . . Drone Recoveries . | . . . Exploration | -11 -10 -10 ------------- Run | Jun Mat Min Turns Passed 2533 | 574 1320 639 Spaces Moved 1402 | 170 853 379 Core 1 | 1 . . Treads . | . . . Legs . | . . . Wheels 1401 | 169 853 379 Hover . | . . . Flight . | . . . Fastest Speed 50 | 50 100 135 Average Speed 123 | 99 122 135 Slowest Speed 140 | 100 140 140 Overloaded Moves . | . . . Propulsion Burnouts . | . . . Robots Hopped . | . . . Cave-ins Triggered . | . . . Exploration Rate (%) 60 | 6 94 80 Regions Visited 2 Branch Regions 1 Pre-discovered Areas . | . . . Known Exits Taken . | . . . Unknown Exits Taken 2 | 1 1 . Scrap Searched 1 | . . 1 Spaces Dug . | . . . Terrain Destroyed 26 | . 26 . Melee . | . . . Projectile . | . . . AOE 26 | . 26 . Terrain Rammed . | . . . Walls Destroyed . | . . . Machines Disabled . | . . . Actions | -11 -10 -10 --------- Run | Jun Mat Min Total 1982 | 509 1041 432 Wait 318 | 274 39 5 Move 1400 | 169 852 379 Hop . | . . . Pick Up 53 | 14 36 3 Fast Attach 11 | 7 4 . Attach 4 | . 2 2 Detach . | . . . Swap 19 | . 16 3 Drop 40 | 6 31 3 Fire 137 | 39 61 37 Melee . | . . . Ram . | . . . Kick . | . . . Crush . | . . . Escape Stasis . | . . . Rewire . | . . . Trap . | . . . Miscellaneous . | . . . Route ------- -11/Junkyard -10/Materials (discovered 5 exits: [*Mat x3] / [*Min x2]) -10/Mines (discovered 2 exits: [*Mat x2]) History --------- Turn | Location | Event 40 | -11/Junkyard | Discovered new exit (range 16) 575 | -11/Junkyard | Entered Materials 576 | -10/Materials | Build established: Mutant 1001 | -10/Materials | Discovered new exit (range 14) 1063 | -10/Materials | Discovered new exit (range 3) 1175 | -10/Materials | Discovered new exit (range 6) 1461 | -10/Materials | Discovered new exit (range 15) 1782 | -10/Materials | Discovered new exit (range 11) 1895 | -10/Materials | Entered Mines 1931 | -10/Mines | Met a Derelict bent on vengeance 1998 | -10/Mines | A weapon hastily lodged in a ceiling crevice suddenly fell to the ground 2085 | -10/Mines | Core integrity fell below 50% 2301 | -10/Mines | Learned 2 Materials zone layouts 2419 | -10/Mines | Discovered new exit (range 7) 2510 | -10/Mines | Discovered new exit (range 13) 2524 | -10/Mines | Core integrity fell below 20% 2534 | -10/Mines | Destroyed by G-47 Trooper with Particle Gun Last Messages --------------- 02132_ G-34 Mercenary destroyed. 02149_ S-10 Pest destroyed. 02149_ Pulverizer disabled. 02164_ S-10 Pest destroyed. 02170_ Acquired 14 matter. 02170_ R-06 Scavenger collects Flight Unit. 02173_ Acquired 14 matter. 02174_ Acquired 11 matter. 02256_ Searching scrap... 02256_ Found Com. Wheel. 02256_ Found Sml. Matter Pod. 02256_ Found Hover Unit. 02256_ Found 21 Matter. 02285_ Acquired derelict log, extracted data. Data stored: Storage entrances (x1). 02301_ Acquired derelict log, extracted data. Data stored: Materials zone layouts (x2). 02382_ Acquired 10 matter. 02419_ EXIT=FOUND 02530_ G-34 Mercenary suffers critical hit (Burn). Map ----- +----------------------------------------------------+ | ?????????????????????????## #????????# ####??? | | ?????????????????????# ### ##????????# #?????? | | ?????????????????????# #?????????# #?????? | | ?????????????????????# ### #?????????# #?????? | | ????????????????????????## #?????????# =#?????? | | ????????????????????????# #?????????#% #?????? | | ???????????????????????## #####?????# !#?????? | | ???????????????????????# #?????# #?????? | | ???????????????????????# #?????# #?????? | | ???????????????????????# ## #?????# #?????? | | ???????????????????????## ## #?????# #?????? | | ????????????????????????## ## #?????# #####?? | | ?????????????????????????# ### #?????# #?? | | ?????????????????????????# #?# #?????# #?? | | ?????????????????????????## ##?# ##????##### #?? | | ??????????????????????????##?### ##???????# #?? | | ????????????????????????????## #####???# #?? | | ???????????????????###??????# """ ##??# #?? | | ??????????????????## #?????# """ ##?# #?? | | ??????????????????# ###### """ #?# ### | | ??????????????????# ## ## | | ?????????????### ## ## #### ###### | | ????????????? u u #######???# #????# | | ?????????????????### < ##????????? ##????# | | ???????????????????### #?????????? #?????# | | ?????????????????????# @ #???????????#?????# | | ????????????????????# ##gg #?????????????????# | | ????????????????? #?# # ##?????????????????# | | ??????????????# ???# ####??????????????????# | | ?????????????# ?????# #?????????????????????? | | ????????????# ??????# ?????????????????????? | | ???????????? ???????????###?????????????????????? | | ?????????????????????????????????????????????????? | | ?????????????????????????????????????????????????? | | ?????????????????????????????????????????????????? | | ?????????????????????????????????????????????????? | | ?????????????????????????????????????????????????? | | ?????????????????????????????????????????????????? | | ?????????????????????????????????????????????????? | | ?????????????????????????????????????????????????? | | | | | | | | | | | | | | | | | | | | | +----------------------------------------------------+ Best States ------------- Heat Dissipation 47 Energy Generation 10 Energy Capacity 250 Matter Stores 300 Matter Capacity 300 Sight Range 16 Terrain Scan Density 10 Armor Coverage 150 Evasion (%) 40 Item Schematics ----------------- Structural Scanner | -10/Materials | Hacked Robot Schematics ------------------ None Fabricated ------------ Nothing Alien Tech Used ----------------- None Achievements -------------- None Challenges ------------ None Game ------ Seed NullScatterDriver Manual? 0 Play Time 00:16:49 Cumulative 125.4 hours Start 2024.01.14 @ 18:56:02 End 2024.01.14 @ 19:10:25 Sessions 1 Manual Loads 0 Difficulty Rogue Special Mode None Game No. 81 Rogue 81 Adventurer 0 Explorer 0 Win Type - Total 1 Types 1/0/0/0/0/0/0/0/0 Lore% 44 Gallery% 46 Achievement% 40 Wizard Run 0 Options --------- ASCII 0 Keyboard 1 Movement Vi Keybinds 0 Fullscreen 2 Font 18/SmallcapsGlow Map View 76x50 Tactical HUD 1 Map Filters NONE Filters NONE Steam 1 RUN: 8a4d8d1b-6c37-42af-81ae-1de6ae782e27